[Event "Budapest One Week GM-B 03-2025"]
[Site "Budapest"]
[Date "2025.03.18"]
[Round "2.5"]
[White "Dudognon, Thibault"]
[Black "Nemeth, Zalan"]
[Result "1/2-1/2"]
[Annotator "RC"]
[ECO "B90"]
[WhiteElo "2429"]
[BlackElo "2341"]
[PlyCount "89"]
[EventDate "2025.03.17"]
[EventType "tourn"]
[EventCountry "HUN"]
[SourceTitle "playchess.com"]
[Source "ChessBase"]
[SourceQuality "1"]
[TimeControl "5400+30"]

1. e4 {[%emt 0:00:54]} c5 {[%emt 0:00:06]} 2. Nf3 {[%emt 0:00:18]} d6 {[%emt 0:00:06]} 3. d4 {[%emt 0:00:22]} cxd4 {[%emt 0:00:05]} 4. Nxd4 {[%emt 0:00:04]} Nf6 {[%emt 0:00:05]} 5. Nc3 {[%emt 0:00:04]} a6 {[%emt 0:00:04]} 6. Bc4 {[%emt 0:00:11]} Nbd7 {[%emt 0:02:22]} 7. Be3 {[%emt 0:02:34]} Qc7 {[%emt 0:02:38]} 8. Bb3 {[%emt 0:03:25]} Nc5 {[%emt 0:02:17]} 9. f3 {[%emt 0:01:40]} e6 {[%emt 0:00:21]} 10. Qe2 {[%emt 0:02:19]} Be7 {[%emt 0:00:14]} 11. a3 {[%emt 0:02:48]} O-O {[%emt 0:14:33]} 12. Ba2 {[%emt 0:02:32]} b5 {[%emt 0:04:18]} 13. g4 {[%emt 0:01:46]} Rb8 {[%emt 0:04:34]} 14. g5 {[%emt 0:03:07]} Nh5 {[%emt 0:07:24]} 15. f4 {[%emt 0:04:39]} g6 {[%emt 0:00:21]} 16. f5 {[%emt 0:09:08]} b4 {[%emt 0:10:45]} 17. axb4 {[%emt 0:00:05]} Rxb4 {[%emt 0:00:04]} 18. O-O-O {[%emt 0:00:12]} Na4 {[%emt 0:10:14]} 19. fxe6 {[%emt 0:14:58]} Nxc3 {[%emt 0:01:19]} 20. exf7+ {[%emt 0:01:42]} Kh8 {[%emt 0:00:05]} 21. bxc3 {[%emt 0:00:12]} Qxc3 {[%emt 0:00:12]} 22. Nb3 {[%emt 0:02:06]} Be6 {[%emt 0:14:46]} 23. Qd2 {[%emt 0:17:18]} Qxd2+ {[%emt 0:06:16]} 24. Bxd2 {[%emt 0:00:02]} Rxe4 {[%emt 0:01:12]} 25. Rhe1 {[%emt 0:08:35]} d5 {[%emt 0:04:06]} 26. Nd4 {[%emt 0:07:26]} Bxf7 {[%emt 0:01:46]} 27. Nc6 {[%emt 0:03:43]} Ba3+ {[%emt 0:03:18]} 28. Kb1 {[%emt 0:00:02]} Kg8 {[%emt 0:01:34]} 29. Rf1 {[%emt 0:02:03]} Be6 {[%emt 0:00:46]} 30. Rxf8+ {[%emt 0:00:37]} Kxf8 {[%emt 0:00:51]} 31. Bc3 {[%emt 0:03:35]} Nf4 {[%emt 0:00:25]} 32. Bf6 {[%emt 0:02:04]} Bg4 {[%emt 0:03:50]} 33. Rg1 {[%emt 0:02:37]} Bf5 {[%emt 0:01:03]} 34. Bb3 {[%emt 0:00:24]} Bc5 {[%emt 0:01:23]} 35. Rd1 {[%emt 0:00:29]} Be6 {[%emt 0:01:43]} 36. Be5 {[%emt 0:01:22]} Ke8 {[%emt 0:01:00]} 37. Bxf4 {[%emt 0:01:00]} Rxf4 {[%emt 0:00:03]} 38. Bxd5 {[%emt 0:00:04]} Bxd5 {[%emt 0:01:12]} 39. Rxd5 {[%emt 0:00:02]} Rf5 {[%emt 0:00:04]} 40. Rd8+ {[%emt 0:01:03]} Kf7 {[%emt 0:00:05]} 41. h4 {[%emt 0:00:23]} Rf4 {[%emt 0:00:47]} 42. Rd7+ {[%emt 0:01:31]} Kg8 {[%emt 0:00:07]} 43. Rd8+ {[%emt 0:00:15]} Kf7 {[%emt 0:00:22]} 44. Rd7+ {[%emt 0:00:50]} Kg8 {[%emt 0:00:06]} 45. Rd8+ {[%emt 0:00:23]} 1/2-1/2